Cogmind - Beta 14 @@@ ROGUE MODE // 2025.05.01 @ 22:05:12 Player: LightKnight Result: Destroyed by Tracker with Linked Autogun Performance ------------- Evolutions (9) 4500 Regions Visited (22) 4400 Robots Destroyed (137) 685 Value Destroyed (7302) 7302 Prototype IDs (37) 740 Alien Tech Used (5) 1000 Bonus (9629) 9629 TOTAL SCORE: 28256 Bonus ------- High Alert Combat Kills 178 Follower Combat Kills 2835 Network Hubs Disabled 200 Met Imprinter 300 Was Imprinted 300 Met Zhirov 300 Found Hidden Lab 3000 Used Core Reset Matrix 3000 Pursued by Intercept 1000 Friendly Fire -1484 Cogmind --------- Core Integrity 0/1600 Matter 297/300 Energy 67/100 System Corruption 3% Temperature Cool (40) Movement Core (250) Ox4 Location -1/Access Parts ------- > --- POWER (2) -------- (None) > --- PROPULSION (6) --- Xenon Bombardment Thruster > --- UTILITY (13) ----- Enhanced Optical Array Improved Melee Analysis Suite Experimental Core Analyzer Zionite Weapon Casing > --- WEAPON (4) ------- Enhanced Nova Cannon > --- INVENTORY (5) ---- Light Quantum Reactor Remote Force Field Compact HERF Cannon Improved Plasma Cutter Peak State ------------ > --- POWER ------------ Heavy Antimatter Reactor > --- PROPULSION ------- Advanced Myomer Leg Advanced Myomer Leg Advanced Myomer Leg Biometal Leg > --- UTILITY ---------- Advanced Power Amplifier Advanced Heat Sink Advanced Cooling System Medium Storage Unit Advanced Energy Well Advanced Target Analyzer Advanced Weapon Cycler Advanced Reaction Control System Centrium Medium Armor Plating Graphene Brace Experimental Thermal Shield Advanced Force Field > --- WEAPON ----------- Gamma Rifle Gamma Rifle Plasma Rifle Compact HERF Cannon > --- INVENTORY -------- Q-thruster Makeshift Trap Scanner Advanced Targeting Computer Advanced Reaction Control System Drone Bay Transdimensional Reconstructor Improved Arc Projector Compact HERF Cannon Improved Plasma Cutter [Rating: 157] Favorites ----------- Power Ion Engine Engine Ion Engine Power Core Fission Core Reactor Quantum Reactor Propulsion Medium Treads Treads Medium Treads Leg Advanced Myomer Leg Wheel Armored Huge Wheel Hover Unit Zionite Glidesys I Flight Unit Xenon Bombardment Thruster Utility Enhanced Optical Array Device Advanced Cooling System Storage Small Storage Unit Processor Enhanced Optical Array Hackware System Shield Protection Centrium Medium Armor Plating Weapon Beamcaster Energy Gun Beamcaster Energy Cannon Neutron Cannon Ballistic Gun Makeshift Shrapnel Gun Ballistic Cannon Bore Cannon Launcher Long-range Missile Launcher Special Weapon Improved Plasma Cutter Piercing Weapon Enhanced Force Lance Build | -11 -10 -10 -9 -9 -7 -6 -6 -5 -5 -5 -5 -5 -4 -4 -4 -4 -3 -3 -3 -3 -2 -1 ------- Run | Yrd Mat Min Mat Min Zio Pro Fac Fac Ext Cet Arc Hub Fac Upp Upp Zhi Pro Res Arm Lab Res Acc Slots Evolved 18 | . . . 2 . . . 6 2 . . . . 2 . . . . 2 . . 2 2 Power 1 | . . . . . . . . . . . . . . . . . . . . . . 1 Propulsion 4 | . . . . . . . 2 . . . . . . . . . . . . . 2 . Utility 11 | . . . 2 . . . 3 2 . . . . 1 . . . . 2 . . . 1 Weapon 2 | . . . . . . . 1 . . . . . 1 . . . . . . . . . Parts Attached 252 | 1 2 5 4 10 6 4 19 5 22 9 3 8 15 9 7 13 3 35 11 5 21 35 Power 16 | . . . . 4 1 . . 1 2 1 . . . . 1 1 . 1 . . 2 2 Engine 6 | . . . . 4 1 . . . 1 . . . . . . . . . . . . . Core 4 | . . . . . . . . 1 1 . . . . . . . . . . . 2 . Reactor 6 | . . . . . . . . . . 1 . . . . 1 1 . 1 . . . 2 Propulsion 46 | . . 1 1 3 . 2 5 . 4 . 3 3 1 . 1 4 . 4 . . 8 6 Treads 17 | . . . . . . 2 3 . 4 . 3 3 1 . 1 . . . . . . . Leg 12 | . . 1 1 2 . . 2 . . . . . . . . 4 . 2 . . . . Wheel 1 | . . . . 1 . . . . . . . . . . . . . . . . . . Hover 2 | . . . . . . . . . . . . . . . . . . . . . . 2 Flight 14 | . . . . . . . . . . . . . . . . . . 2 . . 8 4 Utility 102 | . 2 . 2 1 3 . 11 3 6 2 . 2 10 1 2 3 1 21 7 1 7 17 Device 60 | . 1 . . 1 2 . 5 2 1 . . 2 5 1 1 1 1 16 3 . 7 11 Storage 8 | . . . 1 . . . . . 1 . . . 3 . . 1 . 2 . . . . Processor 13 | . 1 . . . . . 4 . 1 . . . 1 . . . . 1 2 . . 3 Hackware 5 | . . . . . . . 1 1 . . . . . . . . . . 2 1 . . Protection 16 | . . . 1 . 1 . 1 . 3 2 . . 1 . 1 1 . 2 . . . 3 Artifact . | . . . . . . . . . . . . . . . . . . . . . . . Weapon 88 | 1 . 4 1 2 2 2 3 1 10 6 . 3 4 8 3 5 2 9 4 4 4 10 Energy Gun 23 | . . 1 1 . 1 1 . . 3 . . . 2 2 1 1 1 7 . . 2 . Energy Cannon 17 | . . . . . . . . . . 1 . . 1 2 1 2 . 2 . . . 8 Ballistic Gun 18 | 1 . 2 . 1 1 . 1 . 5 5 . 1 . 1 . . . . . . . . Ballistic Cannon 6 | . . . . . . . 2 1 . . . . . . 1 1 1 . . . . . Launcher 10 | . . 1 . 1 . 1 . . . . . 1 1 3 . . . . . . . 2 Special Weapon 4 | . . . . . . . . . 2 . . 1 . . . 1 . . . . . . Impact Weapon . | . . . . . . . . . . . . . . . . . . . . . . . Slashing Weapon . | . . . . . . . . . . . . . . . . . . . . . . . Piercing Weapon 10 | . . . . . . . . . . . . . . . . . . . 4 4 2 . Special Melee Weapon . | . . . . . . . . . . . . . . . . . . . . . . . Unidentified Prototypes 24 | . . . . . 2 . 1 . . 2 . 1 2 1 . 5 . . 1 2 2 5 Parts Lost 79 | . . . 2 1 . . . . 13 . . 1 . 1 8 . 2 16 . 6 12 17 Power 3 | . . . 1 . . . . . 1 . . . . . 1 . . . . . . . Propulsion 21 | . . . . . . . . . 4 . . . . . 2 . . 1 . 2 6 6 Utility 36 | . . . 1 1 . . . . 3 . . 1 . . 2 . 1 7 . 4 5 11 Weapon 19 | . . . . . . . . . 5 . . . . 1 3 . 1 8 . . 1 . Highest Loss Streak 10 | . . . 1 1 . . . . 9 . . 1 . 1 5 . 2 6 . 5 7 10 To Critical Strikes 1 | . . . . . . . . . 1 . . . . . . . . . . . . . Average Slot Usage (%) 86 | . 92 100 82 85 87 91 96 97 93 98 100 99 94 98 91 74 98 90 34 41 26 33 Engine 3 | . 14 14 11 11 11 11 6 2 2 1 . . . . . . . . . . . . Reactor 1 | . . . . . . . . . . 3 5 5 5 5 5 5 5 3 . . . 1 Treads 9 | . . . . . . 6 23 23 19 23 23 23 21 21 15 9 . . . . . . Leg 6 | . 28 28 22 12 . . . . . . . . . . . 8 21 17 . . . . Wheel 1 | . . . . 4 11 7 . . . . . . . . . . . . . . . . Device 17 | . 2 14 11 15 22 22 19 17 14 11 11 15 14 21 21 18 19 31 14 11 2 5 Storage 8 | . 14 14 15 11 11 11 6 5 5 5 5 5 13 15 12 12 10 7 . . . . Processor 9 | . 4 . . . . . 11 17 18 23 23 23 13 10 10 10 10 6 4 9 4 8 Hackware 1 | . . . . . . . 1 3 3 . . . . . . . . . 3 11 5 4 Protection 5 | . . . 1 8 10 11 5 5 5 10 11 5 9 5 4 7 10 3 . . . 4 Energy Gun 5 | . . 4 11 11 11 11 1 . 3 2 . . 7 6 5 1 5 8 . . . . Energy Cannon 2 | . . . . . . . . . . 1 . . 4 8 10 . 10 6 . . . . Ballistic Gun 5 | . 28 16 11 10 11 11 6 5 5 12 17 16 3 . . . . . . . . . Ballistic Cannon 2 | . . . . . . . 10 11 6 . . . . . . . 4 . . . . . Peak Build Rating 157 | 6 8 17 20 28 44 43 74 78 80 96 100 100 122 120 117 137 131 157 59 55 69 100 Average Rating 73 | 6 6 11 17 20 41 42 69 74 69 86 98 98 115 117 106 93 129 136 45 48 36 52 On Entrance 61 | 6 6 7 17 15 27 43 41 67 78 73 96 100 100 118 117 104 137 127 24 55 29 29 Naked Turns 25 | . . . . . . . . . . . . . . . . . . 25 . . . . Heaviest Build 104 | 14 15 18 21 23 43 25 43 48 55 64 64 64 89 87 87 82 81 104 19 17 20 48 Greatest Support 118 | 20 20 25 25 28 28 40 98 98 99 99 109 114 114 113 113 118 118 118 15 15 34 53 Greatest Overweight (x) 8 | . . . 1 . 1 7 . . 8 . . . . . 1 1 . . 1 3 1 4 Average Overweight (x) . | . . . . . . . . . . . . . . . . . . . . . . . Largest Inventory Capacity 10 | 8 8 8 8 8 8 8 8 8 10 10 10 10 10 10 10 10 10 10 5 5 5 5 Average Capacity 8 | 8 8 8 8 8 8 8 8 8 8 10 10 10 10 10 10 10 10 9 5 5 5 5 Most Carried 10 | 6 8 8 8 8 8 8 8 8 10 10 10 10 10 10 10 10 10 10 5 4 5 5 Average Carried 8 | 6 7 7 7 7 7 7 6 7 7 10 10 10 9 9 8 9 9 8 4 3 4 4 Final Capacity 10 | 8 8 8 8 8 8 8 8 8 10 10 10 10 10 10 10 10 10 5 5 5 5 5 Final Carried 10 | 6 8 8 8 8 8 8 8 8 10 10 10 10 10 10 8 8 10 4 4 4 5 4 Class Distribution -------------------- 39% | Scavenger-Tank 20% | Mutant 7% | Derelict-Skirmisher 7% | Scavenger-Mutant 6% | Skirmisher 4% | Derelict-Mutant 3% | Alien-Mutant Dominant Class ---------------- Mutant | -10/Materials Mutant | -10/Mines Mutant | -9/Materials Scavenger-Mutant | -9/Mines Mutant | -7/Zion Derelict-Mutant | -6/Proximity Caves Derelict-Skirmisher | -6/Factory Skirmisher | -5/Factory Scavenger-Tank | -5/Extension Scavenger-Tank | -5/Cetus Scavenger-Tank | -5/Archives Scavenger-Tank | -5/Hub_04(d) Scavenger-Tank | -4/Factory Scavenger-Tank | -4/Upper Caves Scavenger-Tank | -4/Upper Caves Scavenger-Mutant | -4/Zhirov Scavenger-Tank | -3/Proximity Caves Scavenger-Tank | -3/Research Infiltrator-Mutant | -3/Armory Hacker-Ninja | -3/Lab Alien-Mutant | -2/Research Messiah-Mutant | -1/Access Resources | -11 -10 -10 -9 -9 -7 -6 -6 -5 -5 -5 -5 -5 -4 -4 -4 -4 -3 -3 -3 -3 -2 -1 ----------- Run | Yrd Mat Min Mat Min Zio Pro Fac Fac Ext Cet Arc Hub Fac Upp Upp Zhi Pro Res Arm Lab Res Acc Matter Collected 4676 | 210 80 81 75 182 30 109 356 175 1092 152 150 261 242 187 112 140 264 329 152 85 54 158 Remotely . | . . . . . . . . . . . . . . . . . . . . . . . Salvage Created 7855 | . 141 70 86 269 . 115 271 117 914 160 283 752 239 516 828 140 191 2376 142 . 74 171 Parts 331 | . 13 8 2 12 . 7 18 5 44 4 15 23 8 15 30 3 5 105 5 . 3 6 Haulers Intercepted 2 | . . . . . . . 1 . . . . 1 . . . . . . . . . . Recyclers Shooed 5 | . 1 . 1 . . . 2 . . . . . . . . . . 1 . . . . Parts Field Recycled . | . . . . . . . . . . . . . . . . . . . . . . . Retrieved Matter . | . . . . . . . . . . . . . . . . . . . . . . . Parts Self-Destructed 53 | . . . . . . 10 . . . . . . . 9 28 2 4 . . . . . Prevented 7 | . . . . . . 1 . . . . . . . 6 . . . . . . . . Kills | -11 -10 -10 -9 -9 -7 -6 -6 -5 -5 -5 -5 -5 -4 -4 -4 -4 -3 -3 -3 -3 -2 -1 ------- Run | Yrd Mat Min Mat Min Zio Pro Fac Fac Ext Cet Arc Hub Fac Upp Upp Zhi Pro Res Arm Lab Res Acc Combat Hostiles Destroyed 117 | . 2 5 3 7 . 2 4 2 13 2 3 8 3 11 17 . 3 29 . . 1 2 Melee 1 | . . . . . . . . . . . . . . . . . . . . . 1 . Guns 54 | . 2 5 3 7 . . 1 1 7 1 3 8 1 4 2 . 1 8 . . . . Cannons 31 | . . . . . . . 3 1 6 1 . . . 3 4 . 2 10 . . . 1 AOE 15 | . . . . . . 2 . . . . . . . 4 8 . . . . . . 1 Classes Destroyed 15 | . 3 1 . . . . 4 . 3 . . . . . . . . 3 . . . 1 Worker 2 | . 1 . . . . . . . . . . . . . . . . 1 . . . . Builder 3 | . . . . . . . 1 . 1 . . . . . . . . 1 . . . . Hauler 2 | . . . . . . . 1 . . . . 1 . . . . . . . . . . Recycler 1 | . . . . . . . . . . . . . . . . . . 1 . . . . Watcher 10 | . 2 . 1 . . . 1 1 1 . . . . . . . . 2 1 . 1 . Swarmer 22 | . . 5 1 . . . 2 . . . . . . 3 6 . 1 3 . . 1 . Cutter 2 | . . . . . . . . . . . . . . . . . . . . . . 2 Grunt 50 | . 2 . 2 7 . 2 . 2 4 . . 5 1 4 8 . 1 12 . . . . Brawler 2 | . . . . . . . . . . . . 1 . 1 . . . . . . . . Sentry 17 | . . . . . . . 1 . 4 . 3 2 2 1 1 . 1 2 . . . . Specialist 1 | . . . . . . . . . . . . . . . . . . 1 . . . . Hunter 13 | . . . . . . . 1 . 4 . . . . 2 2 . . 4 . . . . Programmer 7 | . . . . . . . . . . . . . . . . . . 7 . . . . Behemoth 1 | . . . . . . . . . 1 . . . . . . . . . . . . . Cetus Guard 2 | . . . . . . . . . . 2 . . . . . . . . . . . . Z-Courier 3 | . . . . . . . . . . . . 1 . . . . . . 1 . . 1 Savage 1 | . . . . . . . . . 1 . . . . . . . . . . . . . Martyr 1 | . . . . . . . . . 1 . . . . . . . . . . . . . Best Kill Streak 10 | . 3 3 2 3 . 2 3 2 4 2 2 3 1 5 6 . 3 10 1 . 1 2 Combat Bots Only 10 | . 1 3 2 3 . 2 2 2 4 2 2 3 1 5 6 . 3 10 . . 1 2 Max Kills in Single Turn 3 | . 2 1 1 1 . 2 2 1 1 1 1 1 1 2 3 . 1 2 1 . 1 1 Gunslinging . | . . . . . . . . . . . . . . . . . . . . . . . Exploded 3 | . . . . . . 2 . . . . . . . 2 3 . . . . . . 1 Melee 1 | . . . . . . . . . . . . . . . . . . . . . 1 . Uniques/NPCs Destroyed . | . . . . . . . . . . . . . . . . . . . . . . . Combat | -11 -10 -10 -9 -9 -7 -6 -6 -5 -5 -5 -5 -5 -4 -4 -4 -4 -3 -3 -3 -3 -2 -1 -------- Run | Yrd Mat Min Mat Min Zio Pro Fac Fac Ext Cet Arc Hub Fac Upp Upp Zhi Pro Res Arm Lab Res Acc Hostile Shots Fired 1255 | . 5 8 30 24 . 4 10 5 173 12 2 37 30 84 53 . 23 378 2 35 123 217 Missed 498 | . 2 1 10 8 . 1 1 2 56 6 . 11 10 23 19 . 11 177 2 13 48 97 Damage Taken 14739 | . 43 54 296 191 . 62 133 112 2183 250 50 466 508 1116 787 . 268 2999 30 564 1676 2951 Core 4235 | . . 25 20 12 . 20 14 . 209 26 . 19 65 50 62 . 27 652 20 333 1070 1611 Absorbed by Shields 982 | . . . . . . . 12 . 97 . . . . . . . . 846 . . 27 . Redirected to Shielding 45 | . . . . . . . . . . . . . . . . . 17 . . . . 28 Ignored by Resistances 447 | . . . . . . . . . . . . . . 181 118 . . 148 . . . . Core Remaining (%) 74 | 100 . 90 . . . 87 98 . . . . 74 . . . . 82 . . 39 26 . Volleys Fired 372 | . 10 5 12 20 . 5 10 13 59 9 10 26 14 20 22 7 7 97 . . 1 25 Largest 4 | . 2 2 2 2 . 2 3 3 3 3 3 3 3 4 4 1 4 4 . . 1 2 Hottest 383 | . 40 99 99 108 . 99 135 144 237 185 105 105 298 383 383 94 344 344 . . 65 200 Shots Fired 937 | . 20 10 21 37 . 10 29 39 172 25 30 75 40 68 70 7 27 229 . . 1 27 Gun 579 | . 20 10 21 34 . 9 9 13 107 17 30 75 25 39 24 7 8 130 . . 1 . Cannon 342 | . . . . . . . 20 26 65 8 . . 13 25 42 . 19 99 . . . 25 Launcher 16 | . . . . 3 . 1 . . . . . . 2 4 4 . . . . . . 2 Special . | . . . . . . . . . . . . . . . . . . . . . . . Kinetic 414 | . 20 7 9 16 . 5 29 39 162 8 30 75 4 4 . . 6 . . . . . Thermal 355 | . . 3 12 18 . 4 . . 10 17 . . 21 52 66 7 21 98 . . 1 25 Explosive 11 | . . . . . . 1 . . . . . . 2 4 4 . . . . . . . Electromagnetic 157 | . . . . 3 . . . . . . . . 13 8 . . . 131 . . . 2 Robot Hit Streak 24 | . 10 4 8 9 . 5 4 4 10 13 19 11 12 14 10 3 5 24 . . . 2 Robot Miss Streak 6 | . 2 3 2 6 . 2 4 4 5 2 2 2 3 3 3 1 4 4 . . . 4 Penetration Max 2 | . . . . . . . 2 . 1 1 . . . . . . . . . . . . Secondary Targets . | . . . . . . . . . . . . . . . . . . . . . . . Shots Hit Robots 553 | . 14 5 15 24 . 8 13 15 106 20 22 44 30 40 28 5 10 142 4 . 3 5 Core Hits 281 | . 10 6 8 13 . 9 12 4 52 9 10 17 11 21 23 2 5 62 2 . 1 4 Critical Kills 19 | . . . . . . . 3 2 5 . 2 3 . . 3 . . . . . . 1 Critical Parts Destroyed 10 | . . . . . . . 2 2 2 . 1 2 . 1 . . . . . . . . Critical Strikes 64 | . . . 1 1 . . 5 4 16 1 5 5 . 1 3 . 1 19 . . 1 1 Burn 13 | . . . 1 1 . . . . 1 1 . . . . . . 1 8 . . . . Meltdown 4 | . . . . . . . . . . . . . . . 3 . . . . . . 1 Destroy 27 | . . . . . . . 5 4 7 . 5 5 . 1 . . . . . . . . Blast 8 | . . . . . . . . . 8 . . . . . . . . . . . . . Corrupt 11 | . . . . . . . . . . . . . . . . . . 11 . . . . Impale 1 | . . . . . . . . . . . . . . . . . . . . . 1 . Melee Attacks 30 | . . . . . . . . . . . . . . . . . . . 7 6 17 . Impact . | . . . . . . . . . . . . . . . . . . . . . . . Slashing . | . . . . . . . . . . . . . . . . . . . . . . . Piercing 30 | . . . . . . . . . . . . . . . . . . . 7 6 17 . Sneak Attacks 3 | . . . . . . . . . . . . . . . . . . . 3 . . . Combat Hostiles . | . . . . . . . . . . . . . . . . . . . . . . . Follow-up Attacks . | . . . . . . . . . . . . . . . . . . . . . . . Damage Inflicted 18070 | . 182 106 393 530 . 360 439 431 3054 513 614 1172 1113 1898 1600 162 314 4273 397 . 162 357 Guns 9208 | . 182 98 377 429 . 152 87 165 1797 335 614 1172 562 796 228 162 68 1984 . . . . Cannons 6082 | . . . . . . . 351 266 1253 178 . . 283 458 687 . 246 2152 . . . 208 Explosions 2054 | . . . . 95 . 208 . . . . . . 268 644 685 . . 46 . . . 108 Melee 559 | . . . . . . . . . . . . . . . . . . . 397 . 162 . Ramming 167 | . . 8 16 6 . . 1 . 4 . . . . . . . . 91 . . . 41 Kinetic 6705 | . 182 76 187 222 . 91 438 431 2863 172 614 1172 105 110 . . 42 . . . . . Thermal 5788 | . . 22 190 207 . 61 . . 187 341 . . 457 974 1063 162 272 1644 . . . 208 Explosive 1657 | . . . . . . 208 . . . . . . 268 644 537 . . . . . . . Electromagnetic 3194 | . . . . 95 . . . . . . . . 283 170 . . . 2538 . . . 108 Impact . | . . . . . . . . . . . . . . . . . . . . . . . Slashing . | . . . . . . . . . . . . . . . . . . . . . . . Piercing 559 | . . . . . . . . . . . . . . . . . . . 397 . 162 . Highest Corruption 14 | . . . . . . . . . . . . . . . 2 2 2 14 14 14 1 3 Average Corruption 4 | . . . . . . . . . . . . . . . 2 2 2 6 14 3 1 2 Corruption Purged 2 | . . . . . . . . . . . . . . . . . . . . . . 2 Corruption Blocked . | . . . . . . . . . . . . . . . . . . . . . . . Effects 67 | . . . . . . . . . . . . . . . 4 2 9 34 11 2 . 5 Message Errors 18 | . . . . . . . . . . . . . . . 2 . 3 9 2 1 . 1 Matter Fused 21 | . . . . . . . . . . . . . . . 1 . 4 11 2 . . 3 Heat Flow Errors 7 | . . . . . . . . . . . . . . . . 1 1 2 2 1 . . Energy Discharges 3 | . . . . . . . . . . . . . . . 1 1 . . 1 . . . Parts Rejected 2 | . . . . . . . . . . . . . . . . . . 2 . . . . Data Loss (minor) 3 | . . . . . . . . . . . . . . . . . . 1 2 . . . Data Loss (major) 4 | . . . . . . . . . . . . . . . . . . 2 1 . . 1 Misfires 1 | . . . . . . . . . . . . . . . . . . 1 . . . . Alerts 1 | . . . . . . . . . . . . . . . . . . 1 . . . . Misdirections 3 | . . . . . . . . . . . . . . . . . . 2 1 . . . Weapon Failures 4 | . . . . . . . . . . . . . . . . . 1 3 . . . . Overload Shots . | . . . . . . . . . . . . . . . . . . . . . . . Overflow Damage 308 | . . . . . . . 7 10 . . . . 24 59 13 . . 54 . . 115 26 Projectiles 110 | . . . . . . . 7 10 . . . . 24 15 . . . 54 . . . . Explosions 83 | . . . . . . . . . . . . . . 44 13 . . . . . . 26 Melee 115 | . . . . . . . . . . . . . . . . . . . . . 115 . Knockbacks 10 | . . . . . . . 2 3 5 . . . . . . . . . . . . . Impact . | . . . . . . . . . . . . . . . . . . . . . . . Kinetic 10 | . . . . . . . 2 3 5 . . . . . . . . . . . . . Secondary . | . . . . . . . . . . . . . . . . . . . . . . . Self-Inflicted Damage 374 | . . . . 2 . . . . . . . . 48 128 59 . . . . . . 137 Shots 13 | . . . . . . . . . . . . . 1 4 1 . . . . . . 7 Rammed 24 | . . . . 4 . . 3 . 4 . . . . . . . . . . . . 13 Targets Rammed 39 | . . 1 5 5 . . 3 . 4 . . . . . . . . 8 . . . 13 Kicked 15 | . . 1 5 1 . . . . . . . . . . . . . 8 . . . . Crushed . | . . . . . . . . . . . . . . . . . . . . . . . Highest Temperature 355 | . 2 27 25 78 . 198 280 164 193 16 . . 135 223 295 193 119 355 177 238 . 183 Average Temperature 68 | . 2 15 7 31 . 76 85 61 28 8 . . 55 70 99 103 29 99 87 131 . 49 Received Heat Transfer 1553 | . 24 . 75 102 . 18 . 27 255 36 . 153 139 181 193 . 39 101 . . 9 201 Effects 1 | . . . . . . . . . . . . . . . . . . 1 . . . . Damage (minor) 1 | . . . . . . . . . . . . . . . . . . 1 . . . . Siege Activations . | . . . . . . . . . . . . . . . . . . . . . . . Robots Corrupted 11 | . . . . . . . . . . . . . 2 . . . . 9 . . . . Combat Hostiles 11 | . . . . . . . . . . . . . 2 . . . . 9 . . . . Parts Fried 29 | . . . . . . . 1 . . . . . 1 . . . . 26 . . . 1 Impact Corruptions . | . . . . . . . . . . . . . . . . . . . . . . . Robots Melted 6 | . . . . . . . . . . . . . . . 3 . . 2 . . . 1 Combat Hostiles 5 | . . . . . . . . . . . . . . . 3 . . 2 . . . . Parts Melted 25 | . . . 1 . . . . . . 3 . . . 2 3 . . 16 . . . . Heat Transferred 8229 | . . 37 407 444 . 111 . . 370 720 . . 592 1110 803 185 296 2969 . . . 185 Parts Sabotaged . | . . . . . . . . . . . . . . . . . . . . . . . Parts Stolen . | . . . . . . . . . . . . . . . . . . . . . . . Parts Stripped . | . . . . . . . . . . . . . . . . . . . . . . . Power Chain Reactions 3 | . . . . . . . . . . . . . . . 1 . . 1 . . . 1 Alert | -11 -10 -10 -9 -9 -7 -6 -6 -5 -5 -5 -5 -5 -4 -4 -4 -4 -3 -3 -3 -3 -2 -1 ------- Run | Yrd Mat Min Mat Min Zio Pro Fac Fac Ext Cet Arc Hub Fac Upp Upp Zhi Pro Res Arm Lab Res Acc Peak Influence 711 | . 108 146 324 200 . . 221 216 545 331 270 520 372 . . . . 471 252 . 711 704 Initial 317 | . . 42 56 122 . . . 107 32 304 132 94 158 . . . . 33 231 . . 317 Average 215 | . 51 59 171 133 . . 71 120 286 321 247 316 243 . . . . 217 215 . 263 471 Maximum Alert Level 3 | . . . 1 1 . . 1 1 2 1 1 2 1 . . . . 2 1 . 3 3 Low Security (%) 54 | 100 100 100 68 82 . . 80 99 41 . 19 25 51 . . . . 41 25 . 43 . Level 1 28 | . . . 31 17 . . 19 . 18 100 80 42 48 . . . . 45 74 . 32 40 Level 2 16 | . . . . . . . . . 40 . . 32 . . . . . 13 . . 24 59 Level 3 . | . . . . . . . . . . . . . . . . . . . . . . . Level 4 . | . . . . . . . . . . . . . . . . . . . . . . . Level 5 . | . . . . . . . . . . . . . . . . . . . . . . . High Security . | . . . . . . . . . . . . . . . . . . . . . . . Max Security . | . . . . . . . . . . . . . . . . . . . . . . . Squads Dispatched 45 | . 1 . 1 2 . . . 2 4 . . 3 3 . . . . 10 . . 5 14 Investigation 8 | . 1 . . 1 . . . . 1 . . . 1 . . . . 1 . . 1 2 Extermination 8 | . . . . . . . . 1 . . . . 1 . . . . 4 . . 1 1 Reinforcement 16 | . . . 1 1 . . . 1 3 . . 3 1 . . . . 5 . . . 1 Assault 2 | . . . . . . . . . . . . . . . . . . . . . 1 1 Garrison 4 | . . . . . . . . . . . . . . . . . . . . . . 4 Intercept 7 | . . . . . . . . . . . . . . . . . . . . . 2 5 Searches Triggered . | . . . . . . . . . . . . . . . . . . . . . . . Construction Impeded 4 | . . . . 1 . . . . 1 . . 1 . . . . . 1 . . . . Haulers Reinforced . | . . . . . . . . . . . . . . . . . . . . . . . Active Scanning Responses . | . . . . . . . . . . . . . . . . . . . . . . . Cargo Convoy Interrupts . | . . . . . . . . . . . . . . . . . . . . . . . Stealth | -11 -10 -10 -9 -9 -7 -6 -6 -5 -5 -5 -5 -5 -4 -4 -4 -4 -3 -3 -3 -3 -2 -1 --------- Run | Yrd Mat Min Mat Min Zio Pro Fac Fac Ext Cet Arc Hub Fac Upp Upp Zhi Pro Res Arm Lab Res Acc Distress Signals 11 | . . . 2 2 . . 1 . 1 . . 2 . . . . . . . . 2 1 Communications Jammed . | . . . . . . . . . . . . . . . . . . . . . . . Distress Signals . | . . . . . . . . . . . . . . . . . . . . . . . Times Spotted 309 | . 5 7 15 14 . 6 9 4 29 4 3 16 5 11 17 . 3 48 5 1 39 68 Peak Tracking Total 24 | . 4 3 7 3 . 4 3 2 5 4 2 3 3 4 5 . 3 8 2 1 13 24 Tactical Retreats 33 | . . 1 1 2 . . 1 . 3 . . . . . . . . 7 1 . 6 11 Traps | -11 -10 -10 -9 -9 -7 -6 -6 -5 -5 -5 -5 -5 -4 -4 -4 -4 -3 -3 -3 -3 -2 -1 ------- Run | Yrd Mat Min Mat Min Zio Pro Fac Fac Ext Cet Arc Hub Fac Upp Upp Zhi Pro Res Arm Lab Res Acc Traps Triggered 10 | . 1 . . . . . . 2 . . . . 1 . . . . 1 . . 4 1 Indirectly . | . . . . . . . . . . . . . . . . . . . . . . . Trap Hack Attempts . | . . . . . . . . . . . . . . . . . . . . . . . Triggered . | . . . . . . . . . . . . . . . . . . . . . . . Disarmed . | . . . . . . . . . . . . . . . . . . . . . . . Reprogrammed . | . . . . . . . . . . . . . . . . . . . . . . . Reused . | . . . . . . . . . . . . . . . . . . . . . . . Traps Extracted . | . . . . . . . . . . . . . . . . . . . . . . . Installed . | . . . . . . . . . . . . . . . . . . . . . . . Triggered . | . . . . . . . . . . . . . . . . . . . . . . . Machines | -11 -10 -10 -9 -9 -7 -6 -6 -5 -5 -5 -5 -5 -4 -4 -4 -4 -3 -3 -3 -3 -2 -1 ---------- Run | Yrd Mat Min Mat Min Zio Pro Fac Fac Ext Cet Arc Hub Fac Upp Upp Zhi Pro Res Arm Lab Res Acc Machines Disabled 31 | . . . . 1 . . . 6 6 . 2 7 3 . . 1 . 1 2 2 . . Max in Single Turn 2 | . . . . 1 . . . 2 1 . 1 2 1 . . 1 . 1 1 1 . . Garrison Access 3 | . . . . . . . . . . . . . 1 . . . . . . . 1 1 Network Hub 1 | . . . . . . . . . . . . 1 . . . . . . . . . . Machines Repaired . | . . . . . . . . . . . . . . . . . . . . . . . Machines Dismantled 7 | . . . . . . . . . 6 . . 1 . . . . . . . . . . Machines Sabotaged . | . . . . . . . . . . . . . . . . . . . . . . . Overloaded Fab Kills . | . . . . . . . . . . . . . . . . . . . . . . . Hacking | -11 -10 -10 -9 -9 -7 -6 -6 -5 -5 -5 -5 -5 -4 -4 -4 -4 -3 -3 -3 -3 -2 -1 --------- Run | Yrd Mat Min Mat Min Zio Pro Fac Fac Ext Cet Arc Hub Fac Upp Upp Zhi Pro Res Arm Lab Res Acc Machines Accessed 27 | . 2 . 6 1 . . . 2 4 . . . 2 . . 4 . 2 . . 1 3 Terminals 10 | . 2 . 5 . . . . . 3 . . . . . . . . . . . . . Fabricators 5 | . . . . . . . . 2 . . . . 1 . . . . 1 . . . 1 Repair Stations 1 | . . . . . . . . . 1 . . . . . . . . . . . . . Recycling Units . | . . . . . . . . . . . . . . . . . . . . . . . Scanalyzers 2 | . . . 1 . . . . . . . . . . . . . . . . . 1 . Garrison Access 4 | . . . . . . . . . . . . . 1 . . . . 1 . . . 2 Total Hacks 69 | . 4 . 26 1 . . . 2 6 . . . 3 . . 17 . 3 . . 1 6 Successful 44 | . 1 . 16 1 . . . 1 2 . . . 3 . . 17 . . . . 1 2 Failed 25 | . 3 . 10 . . . . 1 4 . . . . . . . . 3 . . . 4 Catastrophic 6 | . 1 . 3 . . . . . 2 . . . . . . . . . . . . . Database Lockouts . | . . . . . . . . . . . . . . . . . . . . . . . Manual 91 | . 4 . 20 . . . 3 . 10 . . 18 3 . . . . . 11 . 8 14 Terminals 30 | . 4 . 21 . . . . . 5 . . . . . . . . . . . . . Fabricators 7 | . . . . . . . . 2 . . . . 2 . . . . 2 . . . 1 Repair Stations 1 | . . . . . . . . . 1 . . . . . . . . . . . . . Recycling Units . | . . . . . . . . . . . . . . . . . . . . . . . Scanalyzers 6 | . . . 5 . . . . . . . . . . . . . . . . . 1 . Garrison Access 7 | . . . . . . . . . . . . . 1 . . . . 1 . . . 5 Terminal Hacks 26 | . 1 . 5 1 . . . . 2 . . . . . . 17 . . . . . . Record 5 | . . . . . . . . . . . . . . . . 5 . . . . . . Part Schematic 4 | . . . . . . . . . . . . . . . . 4 . . . . . . Robot Analysis 4 | . . . . . . . . . . . . . . . . 4 . . . . . . Prototype ID Bank 7 | . . . 3 . . . . . . . . . . . . 4 . . . . . . Open Door 3 | . . . . 1 . . . . 2 . . . . . . . . . . . . . Branch Access Points 2 | . 1 . 1 . . . . . . . . . . . . . . . . . . . Emergency Access Points 1 | . . . 1 . . . . . . . . . . . . . . . . . . . Fabricator Hacks 4 | . . . . . . . . 1 . . . . 2 . . . . . . . . 1 Network Status 2 | . . . . . . . . 1 . . . . . . . . . . . . . 1 Load Schematic 1 | . . . . . . . . . . . . . 1 . . . . . . . . . Build 1 | . . . . . . . . . . . . . 1 . . . . . . . . . Repair Station Hacks . | . . . . . . . . . . . . . . . . . . . . . . . Recycling Unit Hacks . | . . . . . . . . . . . . . . . . . . . . . . . Scanalyzer 4 | . . . 4 . . . . . . . . . . . . . . . . . . . Insert Component 2 | . . . 2 . . . . . . . . . . . . . . . . . . . Analyze 2 | . . . 2 . . . . . . . . . . . . . . . . . . . Garrison Access Hacks 2 | . . . . . . . . . . . . . 1 . . . . . . . . 1 Seal Access 2 | . . . . . . . . . . . . . 1 . . . . . . . . 1 Unauthorized Hacks 8 | . . . 7 . . . . . . . . . . . . . . . . . 1 . Terminals 7 | . . . 7 . . . . . . . . . . . . . . . . . . . Assimilate 1 | . . . 1 . . . . . . . . . . . . . . . . . . . Botnet 4 | . . . 4 . . . . . . . . . . . . . . . . . . . Disrupt 1 | . . . 1 . . . . . . . . . . . . . . . . . . . Operators 1 | . . . 1 . . . . . . . . . . . . . . . . . . . Fabricators . | . . . . . . . . . . . . . . . . . . . . . . . Repair Stations . | . . . . . . . . . . . . . . . . . . . . . . . Recycling Units . | . . . . . . . . . . . . . . . . . . . . . . . Scanalyzers 1 | . . . . . . . . . . . . . . . . . . . . . 1 . Extract 1 | . . . . . . . . . . . . . . . . . . . . . 1 . Garrison Access . | . . . . . . . . . . . . . . . . . . . . . . . Data Cores Recovered 1 | . . . . . . . . . . . . . . . . . . . 1 . . . Used . | . . . . . . . . . . . . . . . . . . . . . . . Hacking Detections 14 | . 2 . 4 . . . . 2 2 . . . 1 . . . . 2 . . . 1 Full Trace Events 2 | . . . . . . . . . . . . . 1 . . . . . . . . 1 Feedback Events . | . . . . . . . . . . . . . . . . . . . . . . . Feedback Blocked . | . . . . . . . . . . . . . . . . . . . . . . . Robot Schematics Acquired 4 | . . . . . . . . . . . . 4 . . . . . . . . . . Robots Built . | . . . . . . . . . . . . . . . . . . . . . . . Authchips . | . . . . . . . . . . . . . . . . . . . . . . . Time 169 | . . . . . . . . . . . . . 169 . . . . . . . . . Total Robot Build Rating . | . . . . . . . . . . . . . . . . . . . . . . . Part Schematics Acquired 6 | . . . 1 . . . . . . . . . . . . 4 . . . . 1 . Parts Built . | . . . . . . . . . . . . . . . . . . . . . . . Authchips . | . . . . . . . . . . . . . . . . . . . . . . . Time . | . . . . . . . . . . . . . . . . . . . . . . . Total Part Build Rating . | . . . . . . . . . . . . . . . . . . . . . . . Parts Repaired . | . . . . . . . . . . . . . . . . . . . . . . . Time . | . . . . . . . . . . . . . . . . . . . . . . . Parts Recycled . | . . . . . . . . . . . . . . . . . . . . . . . Recycled Matter . | . . . . . . . . . . . . . . . . . . . . . . . Retrieved Matter . | . . . . . . . . . . . . . . . . . . . . . . . Retrieved Components . | . . . . . . . . . . . . . . . . . . . . . . . Parts Scanalyzed 2 | . . . 2 . . . . . . . . . . . . . . . . . . . Part Schematics Acquired 1 | . . . 1 . . . . . . . . . . . . . . . . . . . Parts Damaged . | . . . . . . . . . . . . . . . . . . . . . . . Bothacking | -11 -10 -10 -9 -9 -7 -6 -6 -5 -5 -5 -5 -5 -4 -4 -4 -4 -3 -3 -3 -3 -2 -1 ------------ Run | Yrd Mat Min Mat Min Zio Pro Fac Fac Ext Cet Arc Hub Fac Upp Upp Zhi Pro Res Arm Lab Res Acc Used RIF Installer . | . . . . . . . . . . . . . . . . . . . . . . . Robots Hacked . | . . . . . . . . . . . . . . . . . . . . . . . Non-combat . | . . . . . . . . . . . . . . . . . . . . . . . Combat . | . . . . . . . . . . . . . . . . . . . . . . . Robot Hacks Applied . | . . . . . . . . . . . . . . . . . . . . . . . Relay Couplers Released 3 | . . . . . . . . . . . . . . . . . . . . . 3 . Machine Destruction 3 | . . . . . . . . . . . . . . . . . . . . . 3 . Fabnet Peak Effective % . | . . . . . . . . . . . . . . . . . . . . . . . Robots Rewired 16 | . . . . . . . . . 16 . . . . . . . . . . . . . Allies Hacked 1 | . . . . . . . . . . . . . . . . . . . . . . 1 Hacks Repelled . | . . . . . . . . . . . . . . . . . . . . . . . Allies | -11 -10 -10 -9 -9 -7 -6 -6 -5 -5 -5 -5 -5 -4 -4 -4 -4 -3 -3 -3 -3 -2 -1 -------- Run | Yrd Mat Min Mat Min Zio Pro Fac Fac Ext Cet Arc Hub Fac Upp Upp Zhi Pro Res Arm Lab Res Acc Total Allies 137 | . . 3 . . 4 . . . 27 . . 7 . . . . . . 7 . 32 57 Largest Group 16 | . . 3 3 1 4 4 3 1 16 9 2 5 2 1 . . . . 6 . 14 12 Highest-Rated Group 581 | . . 40 40 16 155 155 116 33 577 259 51 261 192 96 . . . . 405 . 194 581 Highest-Rated Ally 269 | . . 16 16 16 41 41 41 33 159 34 34 96 96 96 . . . . 96 . 81 269 Zionite Dispatches 15 | . . . . . . . . . 1 . . 3 . . . . . . 3 . 3 5 Light 3 | . . . . . . . . . . . . 1 . . . . . . 1 . . 1 Fire 1 | . . . . . . . . . . . . . . . . . . . 1 . . . Hacker 3 | . . . . . . . . . . . . . . . . . . . . . 1 2 Demo 3 | . . . . . . . . . 1 . . . . . . . . . . . 2 . Experimental 1 | . . . . . . . . . . . . . . . . . . . . . . 1 Kinetic Resupply 2 | . . . . . . . . . . . . 2 . . . . . . . . . . Infowar Resupply 1 | . . . . . . . . . . . . . . . . . . . 1 . . . Zionite Resupply 1 | . . . . . . . . . . . . . . . . . . . . . . 1 Total Orders 3 | . . . . . . . . . . . . . . . . . . 3 . . . . EXPLORE 3 | . . . . . . . . . . . . . . . . . . 3 . . . . Ally Attacks 746 | . . 1 40 3 . 15 37 6 93 37 15 36 11 7 . . . . 6 . 187 252 Total Damage 15257 | . . . 422 26 . 464 438 44 2641 741 204 740 586 139 . . . . 153 . 3486 5173 Kills 98 | . . . 6 . . 4 5 . 20 4 1 3 2 . . . . . 2 . 23 28 Allies Corrupted 5 | . . . . . . . . . . . . . . . . . . . . . 1 4 Allies Melted 1 | . . . . . . . . . . . . . . . . . . . . . . 1 Intel | -11 -10 -10 -9 -9 -7 -6 -6 -5 -5 -5 -5 -5 -4 -4 -4 -4 -3 -3 -3 -3 -2 -1 ------- Run | Yrd Mat Min Mat Min Zio Pro Fac Fac Ext Cet Arc Hub Fac Upp Upp Zhi Pro Res Arm Lab Res Acc Robot Analysis Total 4 | . . . . . . . . . . . . . . . . 4 . . . . . . Derelict Logs Recovered 6 | . . 1 . 2 . 1 . . . . . . . 1 1 . . . . . . . Drone Launches 5 | . . . . . . . 2 . . . . . . . . . . 3 . . . . Drone Recoveries 3 | . . . . . . . 1 . . . . . . . . . . 2 . . . . Zionite Intel Received 3 | . . . . . . . . . 2 . . 1 . . . . . . . . . . Unaware Schematics 1 | . . . . . . . . . . . . 1 . . . . . . . . . . Trap Installations 1 | . . . . . . . . . 1 . . . . . . . . . . . . . Depthwide Sectors/-1 1 | . . . . . . . . . 1 . . . . . . . . . . . . . Exploration | -11 -10 -10 -9 -9 -7 -6 -6 -5 -5 -5 -5 -5 -4 -4 -4 -4 -3 -3 -3 -3 -2 -1 ------------- Run | Yrd Mat Min Mat Min Zio Pro Fac Fac Ext Cet Arc Hub Fac Upp Upp Zhi Pro Res Arm Lab Res Acc Turns Passed 13683 | 6 211 727 343 728 1189 532 684 864 1771 224 199 416 439 414 1268 272 620 1400 188 92 430 666 Spaces Moved 9940 | 4 134 578 217 552 1045 372 372 486 763 110 101 196 228 205 609 158 489 868 327 110 775 1241 Core 390 | . . . . . . 1 . . 4 . . . . . . . . 49 . 23 180 133 Treads 3240 | . . . . . . 85 372 486 759 110 101 196 228 205 609 89 . . . . . . Legs 2484 | 4 134 578 217 320 . . . . . . . . . . . 69 489 673 . . . . Wheels 1563 | . . . . 232 1045 286 . . . . . . . . . . . . . . . . Hover 265 | . . . . . . . . . . . . . . . . . . . . . . 265 Flight 1998 | . . . . . . . . . . . . . . . . . . 146 327 87 595 843 Fastest Speed 26 | 120 120 120 120 100 100 100 165 165 160 160 160 160 160 162 162 120 120 39 39 39 26 33 Average Speed 112 | 120 120 120 126 111 110 117 165 165 164 160 160 160 160 162 179 144 120 102 44 55 36 42 Slowest Speed 450 | 120 120 120 190 120 115 400 166 165 450 160 160 160 162 162 245 190 120 120 119 200 120 250 Overloaded Moves . | . . . . . . . . . . . . . . . . . . . . . . . Propulsion Burnouts . | . . . . . . . . . . . . . . . . . . . . . . . Robots Hopped 8 | . . . . . . . . . . . . . . . . . . . 1 . 5 2 Cave-ins Triggered 2 | . . . . . . . . . . . . . . . 1 . . . . . . 1 Teleports 2 | . . . . . . . . . . . . . . . . . . . 1 1 . . Exploration Rate (%) 51 | 2 28 99 25 94 89 68 11 11 87 65 90 34 10 46 75 61 72 26 14 95 35 36 Regions Visited 22 Branch Regions 14 Pre-discovered Areas 11 | . . . . . 3 . . . 4 . . . . 1 . 3 . . . . . . Known Exits Taken 10 | . 1 . 1 . . . 1 1 1 1 1 1 . . . . . . 1 1 . . Unknown Exits Taken 12 | 1 . 1 . 1 1 1 . . . . . . 1 1 1 1 1 1 . . 1 . Scrap Searched 14 | . . 1 . 2 3 2 . . . . . . . 2 2 . 2 . . . . . Spaces Dug 50 | . . . . . . . . 4 1 . . 4 . . 12 . 3 1 . . 11 14 Terrain Destroyed 372 | . . . . . . . 10 37 34 . 8 31 10 76 108 . 14 13 . . 11 20 Melee 10 | . . . . . . . . . . . . . . . . . . . . . 10 . Projectile 196 | . . . . . . . 10 13 34 . 8 31 2 19 34 . 14 10 . . 1 20 AOE 166 | . . . . . . . . 24 . . . . 8 57 74 . . 3 . . . . Terrain Rammed . | . . . . . . . . . . . . . . . . . . . . . . . Walls Destroyed . | . . . . . . . . . . . . . . . . . . . . . . . Machines Disabled . | . . . . . . . . . . . . . . . . . . . . . . . Actions | -11 -10 -10 -9 -9 -7 -6 -6 -5 -5 -5 -5 -5 -4 -4 -4 -4 -3 -3 -3 -3 -2 -1 --------- Run | Yrd Mat Min Mat Min Zio Pro Fac Fac Ext Cet Arc Hub Fac Upp Upp Zhi Pro Res Arm Lab Res Acc Total 11610 | 4 163 601 263 632 1077 459 414 519 1092 140 122 238 276 235 730 197 503 1239 353 128 879 1346 Wait 535 | . 14 7 17 22 16 72 1 13 27 6 . 3 . . 88 . . 205 . . 30 14 Move 9904 | 3 133 577 217 551 1044 371 371 485 762 109 100 195 227 204 607 157 488 867 324 109 766 1237 Hop 6 | . . . . . . . . . . . . . . . . . . . 1 . 3 2 Pick Up 79 | . 3 2 4 12 4 3 3 1 10 . 3 . 6 2 3 3 4 12 3 . 1 . Fast Attach 115 | . 1 1 2 . 2 2 5 2 11 4 . 1 4 . 2 8 . 13 7 5 16 29 Attach 72 | . . . 1 5 . . 8 1 6 . . . 4 2 5 5 1 14 5 4 5 6 Detach 43 | . . . 1 . . . 4 . 1 . . . 5 . 1 4 . 4 4 4 6 9 Swap 71 | 1 1 4 1 5 4 2 6 2 5 5 3 7 7 7 . 1 2 8 . . . . Drop 106 | . 1 4 4 12 7 4 3 2 6 7 6 3 9 . 1 9 1 11 2 . 3 11 Fire 372 | . 10 5 12 20 . 5 10 13 59 9 10 26 14 20 22 7 7 97 . . 1 25 Melee 30 | . . . . . . . . . . . . . . . . . . . 7 6 17 . Ram 17 | . . . . 4 . . . . . . . . . . . . . . . . . 13 Kick 14 | . . 1 4 1 . . . . . . . . . . . . . 8 . . . . Crush 7 | . . . . . . . 3 . 4 . . . . . . . . . . . . . Escape Stasis 32 | . . . . . . . . . . . . . . . 1 . . . . . 31 . Rewire 156 | . . . . . . . . . 153 . . . . . . 3 . . . . . . Trap . | . . . . . . . . . . . . . . . . . . . . . . . Miscellaneous 51 | . . . . . . . . . 48 . . 3 . . . . . . . . . . Route ------- -11/Scrapyard -10/Materials -10/Mines (discovered 2 exits: *Mat x2) -9/Materials (discovered 2 exits: *Min x2) -9/Mines (discovered 4 exits: [*Mat x2] / [*Exi] / [*Zio]) -7/Zion -6/Proximity Caves -6/Factory -5/Factory (discovered 3 exits: *Fac / Upp / *Ext) -5/Extension (discovered 2 exits: *Fac / *Cet) -5/Cetus -5/Archives (discovered 3 exits: *Fac / *Hub x2) -5/Hub_04(d) -4/Factory -4/Upper Caves -4/Upper Caves (discovered 2 exits: *Res / *Zhi) -4/Zhirov -3/Proximity Caves -3/Research -3/Armory -3/Lab -2/Research -1/Access History --------- Turn | Location | Event 3 | -11/Scrapyard | Discovered new exit (range 1) 7 | -11/Scrapyard | Entered Materials 170 | -10/Materials | Identified exit to Mines 218 | -10/Materials | Entered Mines 250 | -10/Mines | Met a Derelict bent on vengeance 278 | -10/Mines | Received a Rocket Launcher from a helpful Derelict 302 | -10/Mines | Build established: Mutant 337 | -10/Mines | Learned Materials interactive machine intel 482 | -10/Mines | A weapon hastily lodged in a ceiling crevice suddenly fell to the ground 766 | -10/Mines | Discovered new exit (range 10) 770 | -10/Mines | Assisted by bots powering up and referring to "LRC-V3" 930 | -10/Mines | Discovered new exit (range 9) 945 | -10/Mines | Entered Materials 945 | -9/Materials | Accompanied by 3 allies 945 | -9/Materials | Evolved 2 slots: Utility x2 946 | -9/Materials | Loaded intel: 18 interactive machine locations 971 | -9/Materials | Identified exit to Mines 1288 | -9/Materials | Entered Mines 1288 | -9/Mines | Accompanied by 1 ally 1331 | -9/Mines | Excavation squad dispatched 1331 | -9/Mines | A large section of the Mines collapsed 1436 | -9/Mines | Learned 4 Materials zone layouts 1526 | -9/Mines | Discovered new exit (range 6) 1543 | -9/Mines | Build established: Scavenger-Mutant 1565 | -9/Mines | Found a damaged Exp. Sensor Array with a note attached 1568 | -9/Mines | Found Prototype Device 1700 | -9/Mines | Met a Derelict shopkeep closing up shop 1934 | -9/Mines | A Derelict revealed a hidden shortcut to a safe place 1936 | -9/Mines | Discovered new exit (range 12) 1996 | -9/Mines | Deemed a non-threat by the Exiles lab entrance 1996 | -9/Mines | Discovered new exit (range 5) 2016 | -9/Mines | Entered Zion 2070 | -7/Zion | Learned location of Data Miner (-6) 2166 | -7/Zion | Found Prototype Device 2166 | -7/Zion | Identified Phasing AFG 2187 | -7/Zion | Build established: Mutant 2263 | -7/Zion | Given the Hacking Drone Bay 2266 | -7/Zion | Found Prototype Device 2423 | -7/Zion | Learned Factory emergency access door positions 2636 | -7/Zion | Given A8's code to call for help 2859 | -7/Zion | Met Imprinter 2879 | -7/Zion | Imprinted 2881 | -7/Zion | Declared Zion's savior 3044 | -7/Zion | Identified Exp. Sensor Array 3176 | -7/Zion | Discovered new exit (range 11) 3205 | -7/Zion | Entered Proximity Caves 3205 | -6/Proximity Caves | Accompanied by 4 allies 3510 | -6/Proximity Caves | Build established: Derelict-Mutant 3559 | -6/Proximity Caves | Discovered new exit (range 15) 3737 | -6/Proximity Caves | Entered Factory 3737 | -6/Factory | Accompanied by 3 allies 3737 | -6/Factory | Evolved 6 slots: Propulsion x2, Utility x3, Weapon x1 3740 | -6/Factory | Identified Hacking Drone Bay 4080 | -6/Factory | Build established: Derelict-Skirmisher 4342 | -6/Factory | Discovered new exit (range 17) 4415 | -6/Factory | Identified exit to Factory 4421 | -6/Factory | Entered another Factory area 4421 | -5/Factory | Accompanied by 1 ally 4421 | -5/Factory | Evolved 2 slots: Utility x2 4422 | -5/Factory | Identified exit to Upper Caves 4936 | -5/Factory | Discovered new exit (range 2) 4937 | -5/Factory | Identified exit to Factory 5091 | -5/Factory | Build established: Skirmisher 5252 | -5/Factory | Discovered new exit (range 19) 5284 | -5/Factory | Identified exit to Extension 5285 | -5/Factory | Entered Extension 5643 | -5/Extension | Retrieved Zion intel report: Depthwide Sectors/-4 5681 | -5/Extension | Rescued A7 5960 | -5/Extension | Retrieved Zion intel report: Trap Installations 5961 | -5/Extension | Zion Demo squad teleported in 6010 | -5/Extension | Rescued a captive Derelict 6011 | -5/Extension | Rescued a captive Derelict 6129 | -5/Extension | Spotted B-75 Beast 6155 | -5/Extension | Spotted B-75 Beast 6158 | -5/Extension | Allies destroyed B-75 Beast 6227 | -5/Extension | Lost 15 allies 6301 | -5/Extension | Lost 9 parts (1p4n2u2w) 6381 | -5/Extension | Destroyed B-75 Beast 6428 | -5/Extension | Extracted ID and sensor layout for unrecognized location from A7's data core 6535 | -5/Extension | Rescued a captive Derelict 6556 | -5/Extension | Terminal network hard line cut 6602 | -5/Extension | Rescued a captive Derelict 6604 | -5/Extension | Build established: Scavenger-Tank 6645 | -5/Extension | Rescued a captive Derelict 6755 | -5/Extension | Rescued a captive Derelict 6756 | -5/Extension | Rescued a captive Derelict 6841 | -5/Extension | Rescued a captive Derelict 6908 | -5/Extension | Rescued a captive Derelict 7031 | -5/Extension | Discovered exit to Factory (range 10) 7033 | -5/Extension | Discovered new exit (range 6) 7052 | -5/Extension | Identified exit to Cetus 7056 | -5/Extension | Entered Cetus 7056 | -5/Cetus | Accompanied by 9 allies 7074 | -5/Cetus | Spotted Cetus Guard 7075 | -5/Cetus | Spotted Cetus Guard 7084 | -5/Cetus | Spotted Cetus Guard 7086 | -5/Cetus | Spotted Cetus Guard 7106 | -5/Cetus | Destroyed Cetus Guard 7107 | -5/Cetus | Allies destroyed Cetus Guard 7115 | -5/Cetus | Allies destroyed Cetus Guard 7116 | -5/Cetus | Destroyed Cetus Guard 7140 | -5/Cetus | Lost 6 allies 7234 | -5/Cetus | Discovered new exit (range 22) 7273 | -5/Cetus | Identified exit to Archives 7280 | -5/Cetus | Entered Archives 7280 | -5/Archives | Accompanied by 2 allies 7344 | -5/Archives | Discovered new exit (range 22) 7352 | -5/Archives | Unable to access archive contents 7385 | -5/Archives | Identified exit to Hub_04(d) 7405 | -5/Archives | Discovered exit to Hub_04(d) (range 22) 7420 | -5/Archives | Discovered exit to Factory (range 21) 7438 | -5/Archives | Unable to access archive contents 7479 | -5/Archives | Entered Hub_04(d) 7479 | -5/Hub_04(d) | Accompanied by 2 allies 7500 | -5/Hub_04(d) | Zion Light squad teleported in 7548 | -5/Hub_04(d) | Zion Kinetic Resupply teleported in 7586 | -5/Hub_04(d) | Disrupted transfer network 7597 | -5/Hub_04(d) | Lost 6 allies 7647 | -5/Hub_04(d) | Zion Kinetic Resupply teleported in 7651 | -5/Hub_04(d) | Discovered exit to Factory (range 14) 7736 | -5/Hub_04(d) | Enhanced Grunt warped into view, answering call for help 7739 | -5/Hub_04(d) | Enhanced Grunt warped into view, answering call for help 7808 | -5/Hub_04(d) | Retrieved Zion intel report: Unaware Schematics 7851 | -5/Hub_04(d) | Network Hub disabled 7892 | -5/Hub_04(d) | Spotted Lightning 7892 | -5/Hub_04(d) | Spotted Lightning 7895 | -5/Hub_04(d) | Entered Factory 7895 | -4/Factory | Accompanied by 2 allies 7895 | -4/Factory | Evolved 2 slots: Utility x1, Weapon x1 8172 | -4/Factory | Found Prototype Device 8172 | -4/Factory | Identified Exp. Thermal Shield 8302 | -4/Factory | Discovered new exit (range 4) 8334 | -4/Factory | Entered Upper Caves 8334 | -4/Upper Caves | Accompanied by 1 ally 8493 | -4/Upper Caves | Attracted the attention of an 0b10 checkpoint 8708 | -4/Upper Caves | Discovered new exit (range 17) 8740 | -4/Upper Caves | Learned location of Testing (-3) 8748 | -4/Upper Caves | Entered another Upper Caves area 8839 | -4/Upper Caves | Learned 4 Research zone layouts 8873 | -4/Upper Caves | Discovered new exit (range 15) 9087 | -4/Upper Caves | Encountered a Warlord checkpoint 9256 | -4/Upper Caves | Attracted the attention of an 0b10 checkpoint 9311 | -4/Upper Caves | Lost 5 parts (1p1n1u2w) 9690 | -4/Upper Caves | Crushed by falling debris 9891 | -4/Upper Caves | Discovered new exit (range 14) 10016 | -4/Upper Caves | Entered Zhirov 10018 | -4/Zhirov | Discovered new exit (range 3) 10048 | -4/Zhirov | Met Zhirov 10077 | -4/Zhirov | Learned location of Quarantine (-2) 10077 | -4/Zhirov | Learned location of Command (-1) 10092 | -4/Zhirov | Zhirov requested help retrieving the SGEMP Prototype 10117 | -4/Zhirov | Found Alien Artifact 10136 | -4/Zhirov | Found Alien Artifact 10136 | -4/Zhirov | Identified Integrated Reactor 10136 | -4/Zhirov | Installed Integrated Reactor, increased core energy generation (+10) 10288 | -4/Zhirov | Entered Proximity Caves 10755 | -3/Proximity Caves | Attracted the attention of an 0b10 checkpoint 10852 | -3/Proximity Caves | Discovered new exit (range 6) 10908 | -3/Proximity Caves | Entered Research 10908 | -3/Research | Evolved 2 slots: Utility x2 11520 | -3/Research | Lost 6 parts (3u3w) 11537 | -3/Research | Destroyed 10 combat bots 12039 | -3/Research | System corruption reached 10% 12099 | -3/Research | Lost 4 parts (1u3w) 12169 | -3/Research | Lost 3 parts (1u2w) 12218 | -3/Research | Released all parts (16) 12278 | -3/Research | Core integrity fell below 50% 12281 | -3/Research | Terminal network hard line cut 12305 | -3/Research | Discovered new exit (range 7) 12308 | -3/Research | Entered Armory 12321 | -3/Armory | Zion Infowar Resupply teleported in 12347 | -3/Armory | Zion Light squad teleported in 12356 | -3/Armory | Zion Fire squad teleported in 12410 | -3/Armory | Lost 6 allies 12493 | -3/Armory | Identified Transdimensional Reconstructor 12493 | -3/Armory | Warped through subspace to slip node 12493 | -3/Armory | Discovered new exit (range 1) 12493 | -3/Armory | Identified exit to Lab 12496 | -3/Armory | Entered Lab 12496 | -3/Lab | Discovered new exit (range 9) 12499 | -3/Lab | Identified exit to Research 12501 | -3/Lab | Hidden lab's door opened automatically 12501 | -3/Lab | Sensor layout match revealed 12502 | -3/Lab | Gained access to the hidden lab's interior 12505 | -3/Lab | Found Alien Artifact 12505 | -3/Lab | Identified Core Reset Matrix 12505 | -3/Lab | Used Core Reset Matrix 12507 | -3/Lab | Detected by scanners 12509 | -3/Lab | Sensed 3 artifacts in vicinity 12511 | -3/Lab | Discovered exit to Research (range 7) 12513 | -3/Lab | Disabled Active System Cloaker 12527 | -3/Lab | Found Transdimensional Reconstructor 12527 | -3/Lab | Warped through subspace 12538 | -3/Lab | Confronted by A5 12549 | -3/Lab | Found Prototype Hackware 12549 | -3/Lab | Identified Deep Network Scanner 12562 | -3/Lab | Found Core Regenerator 12562 | -3/Lab | Used Core Regenerator, restored core integrity (+325) 12573 | -3/Lab | Found Integrated Mediator 12573 | -3/Lab | Installed Integrated Mediator, increased core attachment efficiency 12588 | -3/Lab | Entered Research 12588 | -2/Research | Evolved 2 slots: Propulsion x2 12612 | -2/Research | Lost 5 parts (2n3u) 12637 | -2/Research | Zion Hacker squad teleported in 12644 | -2/Research | Spotted B-90 Cyclops 12676 | -2/Research | Lost 3 parts (3u) 12738 | -2/Research | Zion Demo squad teleported in 12776 | -2/Research | P-80 Master assimilated allied 9Q-QUQ(d) 12777 | -2/Research | Spotted B-90 Cyclops 12798 | -2/Research | Core integrity fell below 50% 12818 | -2/Research | Spotted B-90 Cyclops 12826 | -2/Research | Zion Demo squad teleported in 12841 | -2/Research | P-80 Master assimilated allied DG-9WK(d) 12908 | -2/Research | Emitted hypermatrix ping 12911 | -2/Research | Assembled emerged from beneath the floor 12913 | -2/Research | Assembled emerged from beneath the floor 12924 | -2/Research | Intercept squad dispatched 12930 | -2/Research | Assembled emerged from beneath the floor 12952 | -2/Research | Spotted Tracker 12952 | -2/Research | Spotted Tracker 12955 | -2/Research | Lost 7 parts (4n2u1w) 12982 | -2/Research | Assembled emerged from beneath the floor 12985 | -2/Research | Discovered new exit (range 13) 12999 | -2/Research | Lost 14 allies 13018 | -2/Research | Entered Access 13018 | -1/Access | Accompanied by 7 allies 13018 | -1/Access | Evolved 2 slots: Power x1, Utility x1 13046 | -1/Access | Found Unknown Device 13046 | -1/Access | Identified Adv. Force Booster 13180 | -1/Access | Zion Hacker squad teleported in 13208 | -1/Access | Found Unknown Launcher 13208 | -1/Access | Identified Gamma Bomb Array 13266 | -1/Access | Core integrity fell below 50% 13272 | -1/Access | Emitted hypermatrix ping 13277 | -1/Access | Assembled emerged from beneath the floor 13281 | -1/Access | Garrison activated, responded to threat 13292 | -1/Access | Zion Light squad teleported in 13295 | -1/Access | Lost 10 parts (4n6u) 13300 | -1/Access | Assembled emerged from beneath the floor 13318 | -1/Access | Intercept squad dispatched 13348 | -1/Access | Zion Experimental squad teleported in 13355 | -1/Access | Zion Zionite Resupply teleported in 13367 | -1/Access | Found Prototype Protection 13367 | -1/Access | Identified Zio. Weapon Casing 13376 | -1/Access | Spotted Tracker 13381 | -1/Access | Allies destroyed Tracker 13405 | -1/Access | Lost 8 allies 13433 | -1/Access | Found Prototype Processor 13433 | -1/Access | Identified Exp. Core Analyzer 13451 | -1/Access | Spotted Combat Programmer 13452 | -1/Access | Core integrity fell below 20% 13460 | -1/Access | Assembled emerged from beneath the floor 13491 | -1/Access | Zion Hacker squad teleported in 13499 | -1/Access | Lost 3 allies 13517 | -1/Access | Assembled emerged from beneath the floor 13518 | -1/Access | First assault squad dispatched 13578 | -1/Access | Assembled emerged from beneath the floor 13590 | -1/Access | Lost 6 allies 13600 | -1/Access | Assembled emerged from beneath the floor 13603 | -1/Access | Garrison activated, responded to threat 13657 | -1/Access | Crushed by falling debris 13658 | -1/Access | Assembled emerged from beneath the floor 13662 | -1/Access | Intercept squad dispatched 13673 | -1/Access | Spotted Tracker 13673 | -1/Access | Spotted Tracker 13684 | -1/Access | Destroyed by Tracker with Linked Autogun Last Messages --------------- 13639_ Imp. Medium Armor Plating destroyed. 13643_ Detected hypermatrix ping. 13657_ The unstable cave ceiling collapses. 13657_ Crushed by falling debris. 13662_ ALERT: Reliable intel has pinpointed LRC-V3, intercept squad en route. 13663_ System corrupted: Matter fused (-8). 13665_ Acquired Unknown Energy Cannon. 13665_ Identified Com. HERF Cannon. 13668_ as-85997 destroyed. 13670_ K-01 Serf collects debris. 13671_ as-00950 destroyed. Tracker: "THREAT CONFIRMED. DEPLOY COMBAT PROGRAMMER." 13673_ Zio. Glidesys I temporarily disabled. 13676_ Q-thruster destroyed. 13676_ Xenon Bombardment Thruster temporarily disabled. 13680_ P-80 Master resets P-80 Master, system corruption cleaned. 13680_ Zio. Glidesys I destroyed. 13680_ Hacking Suite destroyed. 13681_ as-34987 destroyed. Map ----- +----------------------------------------------------+ | ?????????????????????????????????????????????????? | | ?????????????????????????????????????????????????? | | ?????????????????????????????????????????????????? | | ?????????????????????????????????????????????????? | | ?????????????????????????????????????????????????? | | ?????????????????????????????????????????????????? | | ?????????????????????????????????????????????????? | | ?????????????????????????????????????????????????? | | ?????????????????????????????????????????????????? | | ?????????????????????????????????????????????????? | | ?????????????????????????????????????????????????? | | ?????????????????????????????????????????????????? | | ?????????????????????????????????????????????????? | | ?????????????????????????????????????????????????? | | ?????????????????????????????????????????????????? | | ?????????????????????????????????????????????????? | | ?????????????????????????????????????????????????? | | ????????????????????????###??????????????????????? | | ????????????????????????# #??????????????????????? | | ?????????????????########;#??????????????????????? | | ?????????????????#= #??????????????????????? | | ?????????????????# #??????????????????????? | | ?????????????????# ###+##?????????????????? | | ?????????????????# # ######????????????? | | ?????????????????# s H ???????? | | ?????????????????# " @# ???????? | | "????????????????# """ # ###/#######???????? | | ""???????????????# """ #?#### #???????? | | ??????????????# " # #??# #???????? | | ??????????????#######;## #??# #???????? | | ?????????????????????# #### " " #???????? | | ??????????????????????# "%"+ " " #???????? | | ???#######?????######### % #### #???????? | | ???# #?????# # %% #??# #???????? | | ???#* #?????# p %#??# #???????? | | ???# #????## # #??###########???????? | | #### #????# ######## #### #???????? | | # ####### ####### + ! #???????? | | # ?# # ######### | | ###+#### # # # | | ## # + != # | | ## """"" # # != # | | + """"" # # = # | | ## """"" # # # | | "" ## """"" # # # | | """" ## """"?? # # # | | """" ## ???# # # " | | "" ## ??# + # ""R | | + ?# # # """ | | # #^ ^# # | +----------------------------------------------------+ Best States ------------- Heat Dissipation 115 Energy Generation 58 Energy Capacity 850 Matter Stores 472 Matter Capacity 600 Sight Range 22 Robot Scan Range 20 Terrain Scan Range 20 Terrain Scan Density 10 Jamming Range 14 Cloak Strength 3 Power Amplification 60 Additional Mass Support 9 EM Shielding 2 Corruption Containment 8 Armor Coverage 625 Resistance: TH 30 Core Shielding 40 Weapon Shielding 100 Point Defense Rating 160 Weapon Cycling 25 Evasion (%) 75 Targeting Accuracy 8 Melee Accuracy 6 Target Analysis 8 Core Analysis 8 Recoil Reduction 4 Matter Filtering 50 Energy Filtering 30 Kinecelleration 30 Salvage Targeting 2 Offensive Hacking 35 Defensive Hacking 12 Item Schematics ----------------- Com. Wheel | -2/Research | Extracted Robot Schematics ------------------ None Fabricated ------------ Nothing Alien Tech Used ----------------- Integrated Reactor Transdimensional Reconstructor Core Reset Matrix Core Regenerator Integrated Mediator Achievements -------------- None Challenges ------------ None Game ------ Seed ParticleArmageddonBarrier Manual? 0 Play Time 02:49:35 Cumulative 250.9 hours Start 2025.05.01 @ 19:13:44 End 2025.05.01 @ 22:05:12 Sessions 1 Manual Loads 0 Difficulty Rogue Special Mode None Game No. 179 Rogue 179 Adventurer 0 Explorer 0 Win Type - Total 19 Types 16/0/1/2/0/0/0/0/0 Lore% 84 Gallery% 76 Achievement% 62 Wizard Run 0 Options --------- Layout 0 ASCII 1 Keyboard 1 Movement Arrows Keybinds 0 Fullscreen 1 Font 18/Terminus Map View 76x50 Zoom Use 0% Tactical HUD 1 Map Filters NONE Filters NONE Steam 1 RUN: c17218b1-c1cb-47bb-b102-191fff84ef02